bitfinex/quotes_ETHUSD_20240816
["timestamp","ask_amount","ask_price","bid_price","bid_amount"]
[1723833641265,3.81796,2619.2,2618.7,9.6921]
[1723833641464,3.81827,2619.0,2618.7,3.723205]
[1723833641814,3.81796,2619.2,2618.7,2.3721]
[1723833641815,7.636,2619.2,2618.7,2.3721]
[1723833642109,3.81812,2619.1,2618.7,2.3721]
[1723833642460,3.81796,2619.2,2618.7,2.3721]
[1723833642761,7.63554,2619.4,2618.8,3.81852]
[1723833643104,3.81782,2619.3,2618.9,0.6809705]
[1723833644259,3.81747,2619.6,2619.0,3.81816]
[1723833644455,3.0,2619.8,2619.2,6.18996]
[1723833644456,3.81718,2619.8,2619.2,6.18996]
[1723833644899,7.63438,2619.8,2619.2,6.18996]
[1723833645112,8.57248,2620.2,2619.4,3.81764]
[1723833645113,3.81691,2620.0,2619.4,3.81764]
[1723833645259,3.81666,2620.1,2619.7,2.3941]
[1723833645460,3.81688,2620.0,2619.7,3.015237]
[1723833645682,3.81688,2620.0,2619.7,2.3941]
[1723833645902,3.81723,2619.7,2619.3,2.3941]
[1723833646204,10.0981,2620.5,2619.3,2.775886]
[1723833646205,3.81753,2619.5,2619.3,2.775886]
[1723833646385,3.81753,2619.5,2619.3,2.3941]
[1723833646962,3.81733,2619.7,2619.3,2.3941]
[1723833647257,3.81766,2619.4,2619.3,2.3941]
[1723833647414,3.8179,2619.3,2618.9,9.7586]
[1723833647614,3.8179,2619.3,2618.9,11.116304]
[1723833647979,7.63462,2619.7,2618.9,11.116304]
[1723833648195,3.81586,2620.7,2619.3,3.81768]
[1723833648196,3.81703,2619.9,2619.3,3.81768]
[1723833648490,3.8171,2619.8,2619.4,0.381768]
[1723833648695,3.8171,2619.8,2619.2,3.81786]
[1723833648910,3.81681,2620.0,2618.9,11.116304]
[1723833649111,3.81681,2620.0,2619.4,2.4573]
[1723833649410,3.81681,2620.0,2619.5,3.8175]
[1723833649710,7.63352,2620.1,2619.4,2.4573]
[1723833649877,3.81674,2620.1,2619.6,3.81729]
[1723833650068,3.81674,2620.1,2619.5,4.444949]
[1723833650069,3.81651,2620.2,2619.7,3.81719]
[1723833650271,3.81651,2620.2,2619.7,4.580653]
[1723833650468,3.81667,2620.1,2619.6,3.81736]
[1723833650809,3.8168,2620.0,2619.5,3.81739]
[1723833650963,3.81681,2620.0,2619.5,1.009245]
[1723833651308,3.81681,2620.0,2619.5,4.826675]
[1723833651504,3.81681,2620.0,2619.5,8.644085]
[1723833651713,3.81681,2620.0,2619.5,4.826655]
[1723833651901,3.81664,2620.1,2619.6,4.5457655]
[1723833652217,3.81523,2621.1,2619.9,6.13113]
[1723833652218,6.663539,2620.9,2619.9,6.13113]
[1723833652519,6.663539,2620.9,2620.3,3.81628]
[1723833652520,3.81557,2620.9,2620.3,3.81628]
[1723833652721,3.81457,2621.6,2619.7,7.77457655]
[1723833652722,3.81521,2621.1,2620.1,2.3142]
[1723833653021,3.81513,2621.2,2620.6,6.26209]
[1723833653022,3.81505,2621.2,2620.6,6.26209]
[1723833653224,3.81505,2621.2,2620.7,4.441959]
[1723833653546,2.2822,2621.6,2621.0,3.8153]
[1723833653547,3.81454,2621.6,2621.0,3.8153]
[1723833653668,3.81425,2621.8,2621.1,6.64283]
[1723833653863,3.81433,2621.7,2621.2,3.81502]
[1723833654167,7.6285,2621.8,2621.2,3.88139637]
[1723833654374,3.81435,2621.7,2621.2,3.88139637]
[1723833654622,3.81435,2621.7,2621.2,0.06637637]
[1723833654872,3.81425,2621.8,2621.2,4.89562901]
[1723833655012,3.81396,2622.0,2621.3,3.8148]
[1723833655222,3.81396,2622.0,2621.3,3.88094228]
[1723833655485,3.81383,2622.1,2621.3,4.99654777]
[1723833655711,7.62769,2622.1,2621.4,3.81465]
[1723833655916,3.81389,2622.0,2621.4,3.81465]
[1723833656096,3.81389,2622.0,2621.3,3.88089228]
[1723833656097,3.81403,2621.9,2621.5,0.06594354]
[1723833656299,3.81432,2621.7,2621.5,0.06594354]
[1723833656526,3.81446,2621.6,2621.1,2.4462]
[1723833657228,3.81425,2621.8,2621.1,2.4462]
[1723833657229,3.81425,2621.8,2621.1,6.26136]
[1723833657380,3.81425,2621.8,2621.2,3.81496]
[1723833657583,3.81425,2621.8,2621.3,3.81488]
[1723833658326,3.81425,2621.8,2621.2,0.626136]
[1723833658484,3.81425,2621.8,2621.2,4.441156]
[1723833658711,3.81425,2621.8,2621.1,6.26129]
[1723833659404,3.81447,2621.6,2621.1,6.26129]
[1723833659704,3.81425,2621.8,2621.2,3.815]
[1723833660642,3.81425,2621.8,2621.1,2.4462]
[1723833660643,3.81394,2622.0,2621.4,3.81474]
[1723833660803,3.81394,2622.0,2621.4,3.81464]
[1723833661127,3.81394,2622.0,2621.2,4.0596]
[1723833661128,3.81406,2621.9,2621.2,7.87452]
[1723833661333,3.81406,2621.9,2621.3,3.81489]
[1723833661487,4.576702,2622.0,2621.4,3.81467]
[1723833661721,3.81394,2622.0,2621.4,3.81467]
[1723833661933,7.62736,2622.2,2621.5,3.81451]
[1723833662138,4.59337649,2622.2,2621.4,3.81467]
[1723833662289,3.81393,2622.0,2621.4,7.62934]
[1723833662488,3.81393,2622.0,2621.4,3.81467]
[1723833662945,3.81404,2621.9,2621.4,3.81467]
[1723833663095,7.6279,2622.0,2621.4,3.81467]
[1723833663724,3.81403,2621.9,2621.4,4.602094]
[1723833664430,4.59341649,2622.2,2621.4,8.416734]
[1723833664630,4.59341649,2622.2,2621.4,4.602064]
[1723833665034,3.81368,2622.2,2621.5,2.55498088]
[1723833665233,3.81368,2622.2,2621.5,2.4787]
[1723833665411,3.81382,2622.1,2621.5,6.29322]
[1723833665613,7.62736,2622.2,2621.6,3.81445]
[1723833665919,3.81411,2621.9,2621.5,4.3002274]
[1723833666154,3.81411,2621.9,2621.5,2.4787]
[1723833666357,3.81402,2622.0,2621.5,2.4787]
[1723833666550,3.81368,2622.2,2621.6,0.629331]
[1723833666737,3.81368,2622.2,2621.5,6.36947529]
[1723833666738,3.81334,2622.4,2621.7,3.81422]
[1723833666940,3.81334,2622.4,2621.9,2.3247]
[1723833667263,3.81344,2622.3,2621.9,2.3247]
[1723833668141,3.8136,2622.2,2621.9,2.3247]
[1723833668374,3.81388,2622.0,2621.6,2.4948]
[1723833668557,3.81406,2621.9,2621.6,2.4948]
[1723833668755,3.81388,2622.0,2621.6,2.4948]
[1723833668962,3.81388,2622.0,2621.7,0.06325971]
[1723833669159,3.81388,2622.0,2621.7,0.01325971]
[1723833669478,3.81388,2622.0,2621.7,0.0614937]
[1723833669774,3.81368,2622.2,2621.7,0.31712307]
[1723833670097,3.81289,2622.7,2621.7,0.0614937]
[1723833670276,7.62795,2622.0,2621.7,0.0614937]
[1723833670574,7.62834,2621.8,2621.7,0.0614937]
[1723833670775,4.816074,2621.8,2621.7,0.0614937]
[1723833670929,3.81417,2621.8,2621.3,3.81482]
[1723833671430,3.81417,2621.8,2621.4,0.05976099]
[1723833671634,3.81397,2622.0,2621.4,3.87443099]
[1723833671834,3.81373,2622.1,2621.5,6.6531331]
[1723833672074,16.05174,2623.5,2621.5,6.6531331]
[1723833672075,2.3245,2623.0,2622.0,2.4512]
[1723833672279,3.81307,2622.6,2622.0,2.4512]
[1723833672572,3.81307,2622.6,2621.9,11.13391]
[1723833672573,3.81383,2622.1,2621.9,7.32]
[1723833672788,3.81383,2622.1,2621.6,2.4512]
[1723833673077,3.81383,2622.1,2621.6,8.10922]
[1723833674269,3.81383,2622.1,2621.6,4.29477]
[1723833674445,3.81382,2622.1,2621.6,2.4512]
[1723833675430,3.81428,2621.8,2621.5,7.32]
[1723833675634,3.81413,2621.9,2621.5,7.32]
[1723833675833,3.81316,2622.5,2621.8,3.81405]
[1723833676057,3.81316,2622.5,2621.9,0.381405]
[1723833676269,3.81374,2622.1,2621.6,6.17774]
[1723833676442,0.381374,2622.0,2621.6,6.17774]
[1723833676646,3.8135,2622.3,2621.7,0.05945525]
[1723833676848,3.81436,2621.7,2621.5,7.32]
[1723833677237,3.81446,2621.6,2621.5,7.32]
[1723833677686,3.81446,2621.6,2621.0,14.13526]
[1723833677838,3.81461,2621.5,2621.0,16.166677]
[1723833678367,3.81431,2621.7,2621.0,16.166677]
[1723833678566,3.81431,2621.7,2621.1,3.81509]
[1723833678983,3.81448,2621.6,2621.1,3.81509]
[1723833679152,3.81448,2621.6,2621.0,16.166677]
[1723833679153,3.81461,2621.5,2621.0,7.32]
[1723833679353,3.81461,2621.5,2620.9,6.17876]
[1723833679753,3.81461,2621.5,2621.0,3.81521]
[1723833679952,3.81461,2621.5,2621.0,4.433071]
[1723833680394,7.62932,2621.5,2621.0,4.433071]
[1723833680593,7.62934,2621.5,2621.0,3.81521]
[1723833680888,7.6293,2621.5,2621.0,3.81521]
[1723833681095,3.81476,2621.4,2620.9,2.3634]
[1723833681813,3.81476,2621.4,2620.9,6.17888]
[1723833682115,0.762937,2621.4,2621.0,3.81532]
[1723833682293,6.30443,2621.5,2621.0,3.81532]
[1723833682865,3.81463,2621.5,2621.0,3.81532]
[1723833683065,7.62932,2621.5,2621.0,3.81532]
[1723833683509,3.8149,2621.3,2620.8,3.81548]
[1723833683684,3.8149,2621.3,2621.1,0.06017924]
[1723833683884,3.8149,2621.3,2620.8,7.63103]
[1723833684209,3.8149,2621.3,2621.2,0.06007985]
[1723833684418,3.8149,2621.3,2620.8,7.63103]
[1723833685009,4.577562,2621.5,2620.9,3.87577803]
[1723833685213,3.81456,2621.6,2620.9,0.06037803]
[1723833685430,7.63056,2621.1,2620.9,0.06037803]
[1723833685572,7.63056,2621.1,2620.7,7.32]
[1723833685573,7.6306,2621.1,2620.7,7.32]
[1723833685772,3.81528,2621.1,2621.0,0.06029652]
[1723833686121,3.81528,2621.1,2621.0,0.06029525]
[1723833686422,3.8151,2621.2,2620.7,11.13576]
[1723833686594,3.8151,2621.2,2621.0,0.06029525]
[1723833686773,3.8151,2621.2,2620.7,11.13576]
[1723833686971,3.81521,2621.1,2620.7,7.32]
[1723833687275,7.63051,2621.1,2620.7,7.32]
[1723833688109,3.81521,2621.1,2620.7,7.32]
[1723833689384,3.81542,2621.0,2620.7,7.32]
[1723833689585,3.81542,2621.0,2620.4,9.99364]
[1723833689841,3.81542,2621.0,2620.5,4.43378]
[1723833690624,7.63087,2621.0,2620.5,0.61775]
[1723833691033,3.81584,2620.7,2620.3,7.32]
[1723833691360,3.81607,2620.5,2620.3,7.32]
[1723833691626,3.81621,2620.4,2620.3,7.32]
[1723833691840,3.81621,2620.4,2619.8,3.81697]
[1723833691841,3.81653,2620.2,2619.8,9.6735]
[1723833692019,3.81635,2620.4,2619.8,13.49056]
[1723833692199,4.197366,2620.7,2619.8,13.49056]
[1723833692200,3.81638,2620.3,2619.9,1.349056]
[1723833692402,3.81651,2620.2,2619.8,9.6735]
[1723833692829,3.81638,2620.3,2619.8,13.4905]
[1723833693022,3.81621,2620.4,2619.9,1.730772]
[1723833693724,3.81638,2620.3,2619.9,1.730772]
[1723833694032,3.81638,2620.3,2619.8,13.49048]
[1723833695037,11.069108,2621.1,2620.1,3.81657]
[1723833695239,3.81586,2620.7,2620.2,0.381657]
[1723833695403,3.81586,2620.7,2620.1,3.81654]
[1723833695939,3.81535,2621.0,2620.3,3.81628]
[1723833696103,3.81398,2622.0,2620.5,3.81596]
[1723833696104,3.81527,2621.1,2620.5,3.81596]
[1723833696309,3.81513,2621.2,2620.5,3.81596]
[1723833696310,3.81534,2621.0,2620.6,0.629636]
[1723833697131,3.81564,2620.8,2620.4,2.4804]
[1723833698721,3.81564,2620.8,2620.5,0.05881576]
[1723833699036,3.81577,2620.7,2620.5,0.05881576]
[1723833699395,3.81564,2620.8,2620.5,0.05881576]
[1723833700100,3.81543,2621.0,2620.5,0.05881576]
[1723833700327,3.8157,2620.8,2620.5,1.07600534]
[1723833700520,3.8157,2620.8,2620.5,0.05881576]
[1723833701843,7.63144,2620.8,2620.5,0.05881576]
[1723833702039,3.8157,2620.8,2620.5,0.05881576]
[1723833703497,7.63144,2620.8,2620.5,0.05881576]
[1723833703925,3.8158,2620.7,2620.5,0.05881576]
[1723833704134,0.763144,2620.8,2620.1,7.32]
[1723833704135,3.81628,2620.4,2620.1,7.32]
[1723833704395,3.81628,2620.4,2619.7,13.53411]
[1723833704396,3.8165,2620.2,2619.7,13.53411]
[1723833704597,3.81628,2620.4,2619.9,3.81692]
[1723833705233,3.81628,2620.4,2619.8,1.353411]
[1723833705717,3.81621,2620.4,2619.8,1.353411]
[1723833705897,3.81643,2620.3,2619.8,1.353411]
[1723833706344,3.81668,2620.1,2619.7,9.717]
[1723833706712,3.8165,2620.2,2619.7,13.53422]
[1723833707036,3.8165,2620.2,2619.7,16.486383]
[1723833707852,3.8165,2620.2,2619.7,14.089383]
[1723833708972,3.81621,2620.4,2619.7,14.089383]
[1723833709246,3.81615,2620.5,2619.9,3.8169]
[1723833709554,6.16839,2621.5,2620.9,3.81547]
[1723833709704,6.16839,2621.5,2620.7,2.2719]
[1723833709705,3.81493,2621.3,2620.7,6.08755]
[1723833709901,2.3537,2621.8,2621.2,3.81496]
[1723833709902,3.81432,2621.7,2621.2,3.81496]
[1723833710136,3.81429,2621.8,2621.2,3.81496]
[1723833710369,3.81429,2621.8,2621.2,6.08686]
[1723833710652,3.81447,2621.6,2621.2,2.2719]
[1723833711037,3.81488,2621.4,2620.9,2.2719]
[1723833711238,3.81485,2621.4,2620.9,6.0873]
[1723833712147,7.62972,2621.4,2620.9,2.2719]
[1723833712510,3.81485,2621.4,2620.9,2.2719]
[1723833712712,3.81485,2621.4,2620.9,3.262204]
[1723833712946,3.81485,2621.4,2620.9,7.077674]
[1723833713352,3.81504,2621.2,2620.9,2.2719]
[1723833713724,3.81504,2621.2,2621.0,0.05632049]
[1723833714512,3.81504,2621.2,2620.7,3.0]
[1723833714714,3.81504,2621.2,2621.1,0.0562211]
[1723833714946,3.81504,2621.2,2620.7,3.0]
[1723833715141,3.81504,2621.2,2621.1,0.0562211]
[1723833715327,3.81482,2621.4,2620.2,6.28801]
[1723833715328,3.81476,2621.4,2620.2,6.28801]
[1723833715527,2.2664,2621.5,2620.2,6.28801]
[1723833715528,3.81561,2620.9,2620.2,6.28801]
[1723833715845,3.81593,2620.6,2620.0,3.81669]
[1723833716188,3.81593,2620.6,2620.0,7.63339]
[1723833716368,3.81593,2620.6,2620.0,9.63664261]
[1723833717068,3.81615,2620.5,2620.0,3.81669]
[1723833717222,3.81631,2620.4,2619.9,2.4716]
[1723833717421,7.63311,2620.2,2619.8,19.49]
[1723833717635,3.81667,2620.1,2619.8,19.49]
[1723833717861,3.81651,2620.2,2619.8,19.49]
[1723833718451,7.63314,2620.2,2619.8,19.49]
[1723833718654,3.8168,2620.0,2619.5,7.32]
[1723833718860,3.81708,2619.8,2619.3,2.2856]
[1723833719043,3.8168,2620.0,2619.5,3.81752]
[1723833719636,7.63369,2620.0,2619.3,11.748328]
[1723833719938,3.81694,2619.9,2619.3,7.930628]
[1723833720245,3.8168,2620.0,2619.4,6.5597228]
[1723833720446,3.81665,2620.1,2619.5,3.81742]
[1723833720661,7.63317,2620.2,2619.5,9.09147354]
[1723833720851,3.81658,2620.2,2619.5,5.27405354]
[1723833721154,3.81658,2620.2,2619.6,3.81737]
[1723833723500,3.81658,2620.2,2619.2,9.7693]
[1723833723501,0.989188,2620.2,2619.2,9.7693]
[1723833723642,3.81746,2619.6,2619.2,9.7693]
[1723833723979,3.81746,2619.6,2619.2,2.4493]
[1723833723980,3.81745,2619.6,2619.2,2.4493]
[1723833724178,3.81714,2619.8,2619.2,2.4493]
[1723833724351,3.81723,2619.7,2619.2,2.4493]
[1723833724863,3.81714,2619.8,2619.2,6.26725]
[1723833725069,3.81714,2619.8,2619.2,2.4493]
[1723833725366,3.81739,2619.6,2619.2,2.4493]
[1723833725938,7.63485,2619.6,2619.2,2.4493]
[1723833726237,3.81773,2619.4,2618.9,7.32]
[1723833726547,3.81789,2619.3,2618.8,2.3936]
[1723833726748,3.81773,2619.4,2618.9,3.81838]
[1723833727071,3.81717,2619.8,2618.8,2.87673177]
[1723833727379,3.81717,2619.8,2619.2,3.81792]
[1723833727948,3.81717,2619.8,2618.9,0.58767318]
[1723833727949,3.81738,2619.6,2619.0,3.81812]
[1723833728166,3.81738,2619.6,2619.0,4.9282175]
[1723833728364,2.3626,2620.7,2619.5,4.716]
[1723833728572,3.81595,2620.6,2619.8,3.81694]
[1723833728804,3.81415,2621.9,2621.0,3.81531]
[1723833728940,3.87919544,2622.8,2621.4,4.716]
[1723833728941,1.30482503,2622.5,2621.4,4.716]
[1723833729137,6.17558,2622.7,2621.6,3.81444]
[1723833729138,3.81303,2622.6,2621.6,3.81444]
[1723833729385,3.81347,2622.3,2621.5,0.04468945]
[1723833729589,3.81347,2622.3,2621.7,0.04449074]
[1723833729758,3.81347,2622.3,2621.5,3.8146]
[1723833729759,3.81376,2622.1,2621.6,0.04457385]
[1723833730083,3.81376,2622.1,2621.1,6.20874]
[1723833730290,7.62834,2621.8,2621.7,0.04428346]
[1723833730509,7.62834,2621.8,2620.7,2.3936]
[1723833730510,6.17649,2622.0,2620.9,6.81545]
[1723833730667,3.81403,2621.9,2621.1,3.81507]
[1723833730839,2.3626,2622.4,2621.0,0.04329759]
[1723833730840,4.716,2622.3,2621.0,0.04329759]
[1723833731037,4.716,2622.3,2620.7,2.3936]
[1723833731038,3.81487,2621.4,2621.2,0.04310751]
[1723833731240,3.81444,2621.7,2621.1,0.04320689]
[1723833731483,3.81444,2621.7,2621.3,0.04300937]
[1723833731675,3.81444,2621.7,2621.2,0.04310875]
[1723833731876,3.81444,2621.7,2621.0,3.81531]
[1723833732280,3.81479,2621.4,2621.1,0.04320814]
[1723833732583,3.81479,2621.4,2620.4,3.81618]
[1723833732584,3.8152,2621.1,2620.4,3.81618]
[1723833733536,3.81497,2621.3,2620.3,2.3246]
[1723833733781,3.81497,2621.3,2620.5,3.81606]
[1723833733986,6.285,2621.9,2620.7,2.3468]
[1723833733987,3.81403,2621.9,2620.7,2.3468]
[1723833734180,3.81403,2621.9,2621.1,3.81506]
[1723833734383,3.81403,2621.9,2621.2,3.81502]
[1723833734595,5.438,2622.2,2621.2,3.81503]
[1723833734787,3.81389,2622.0,2621.2,3.81503]
[1723833735018,3.81389,2622.0,2621.3,2.3468]
[1723833737176,3.81403,2621.9,2621.3,2.3468]
[1723833737379,3.81427,2621.8,2621.1,7.32]
[1723833737689,0.762748,2622.0,2621.1,7.32]
[1723833737690,3.81393,2622.0,2621.1,7.32]
[1723833737873,3.81403,2621.9,2621.1,7.32]
[1723833738079,4.195433,2621.9,2621.1,7.32]
[1723833738387,3.81436,2621.7,2621.1,7.32]
[1723833738793,3.81446,2621.6,2621.1,7.32]
[1723833739095,0.381403,2621.9,2621.1,7.32]
[1723833739096,3.81504,2621.2,2621.1,7.32]
[1723833739299,3.81504,2621.2,2620.5,12.17]
[1723833739300,3.8153,2621.1,2620.5,12.17]
[1723833739593,3.81535,2621.0,2620.4,7.32]
[1723833740390,3.81481,2621.4,2620.4,7.32]
[1723833740584,3.81481,2621.4,2620.5,0.732]
[1723833740585,3.81505,2621.2,2620.5,0.732]
[1723833741170,3.81519,2621.1,2620.4,11.13613]
[1723833741507,0.629821,2621.4,2620.4,11.13613]
[1723833741508,3.81548,2620.9,2620.4,7.32]
[1723833741704,0.629821,2621.4,2620.0,15.98673]
[1723833741705,3.81606,2620.5,2620.0,7.32]
[1723833741895,3.0,2621.4,2619.1,0.77951976]
[1723833741896,3.81693,2620.0,2619.2,3.81793]
[1723833742062,3.81717,2619.8,2619.0,7.63631]
[1723833742265,3.81747,2619.6,2619.0,3.81813]
[1723833742461,3.81747,2619.6,2618.9,3.8183]
[1723833742693,3.81747,2619.6,2619.0,3.81815]
[1723833742962,3.81715,2619.8,2619.0,3.81815]
[1723833742963,7.63435,2619.8,2619.0,3.81815]
[1723833743158,8.397785,2619.8,2619.1,3.81809]
[1723833743386,3.81685,2620.0,2619.2,3.81782]
[1723833743800,3.81685,2620.0,2619.3,3.860045]
[1723833743994,4.580192,2620.0,2619.3,0.042325]
[1723833744166,3.81685,2620.0,2619.3,0.042325]
[1723833744382,3.81702,2619.9,2619.3,3.860105]
[1723833744862,3.81702,2619.9,2619.3,0.042325]
[1723833745129,3.81685,2620.0,2619.3,3.860035]
[1723833745449,0.381685,2620.0,2619.3,0.042325]
[1723833745649,3.81742,2619.6,2619.3,0.042325]
[1723833745858,6.285,2620.3,2618.7,2.376]
[1723833745859,2.4561,2620.2,2618.7,6.285]
[1723833746027,6.81611,2620.5,2619.7,3.81714]
[1723833746351,6.81611,2620.5,2618.8,3.58928656]
[1723833746352,3.81683,2620.0,2619.8,0.04182745]
[1723833746498,3.81683,2620.0,2619.3,3.81772]
[1723833746699,3.81683,2620.0,2619.4,3.8584855]
[1723833747503,7.63371,2620.0,2619.4,3.8584855]
[1723833747721,3.81683,2620.0,2619.4,3.8584855]
[1723833747920,3.81711,2619.8,2619.4,0.0409155]
[1723833748109,0.381711,2619.7,2619.2,3.81787]
[1723833748309,3.81711,2619.8,2619.5,0.04081599]
[1723833748533,3.81686,2620.0,2619.3,3.8178]
[1723833748740,3.81686,2620.0,2619.6,0.04071648]
[1723833749008,3.81686,2620.0,2619.2,0.763574]
[1723833749009,3.81724,2619.7,2618.9,7.32]
[1723833749359,7.63461,2619.7,2619.0,3.81821]
[1723833749556,3.81724,2619.7,2619.1,3.81808]
[1723833749739,3.81724,2619.7,2619.0,9.403418]
[1723833750105,3.81724,2619.7,2619.0,5.585208]
[1723833750350,3.81724,2619.7,2618.9,7.32]
[1723833750351,3.81771,2619.4,2618.9,7.32]
[1723833750554,3.8176,2619.5,2618.9,7.32]
[1723833750735,3.8176,2619.5,2619.0,3.81823]
[1723833752353,3.8176,2619.5,2618.9,7.32]
[1723833752550,3.8176,2619.5,2618.9,11.13835]
[1723833753406,3.8176,2619.5,2618.9,7.32]
[1723833753606,3.8176,2619.5,2618.9,11.13839]
[1723833753607,7.63521,2619.5,2618.9,11.13839]
[1723833753855,7.63521,2619.5,2619.0,0.04149118]
[1723833753856,3.8176,2619.5,2619.0,0.04149118]
[1723833754061,3.81731,2619.7,2619.0,5.3594843]
[1723833754062,3.81748,2619.6,2619.0,5.3594843]
[1723833754350,3.81748,2619.6,2619.0,3.85965118]
[1723833755391,3.82014,2617.7,2617.5,0.77951976]
[1723833755537,3.82014,2617.7,2617.1,2.2674]
[1723833755538,4.202154,2617.7,2617.1,2.2674]
[1723833755713,3.82014,2617.7,2617.1,2.2674]
[1723833756561,3.82014,2617.7,2616.9,3.82122]
[1723833756720,3.82014,2617.7,2617.0,3.82116]
[1723833757457,3.82014,2617.7,2616.7,3.82155]
[1723833757458,9.89088,2617.7,2616.7,3.82155]
[1723833757752,9.89088,2617.7,2616.5,7.64366]
[1723833758056,9.89088,2617.7,2616.6,3.82173]
[1723833758607,9.89088,2617.7,2616.7,3.82156]
[1723833758837,9.89088,2617.7,2616.5,3.82179]
[1723833759056,9.89088,2617.7,2616.6,3.82174]
[1723833759409,9.89088,2617.7,2616.5,7.64359]
[1723833759657,9.89088,2617.7,2616.5,3.82179]
[1723833759867,9.89088,2617.7,2616.6,3.82166]
[1723833760381,9.89088,2617.7,2616.7,3.82157]
[1723833760564,16.71102,2617.7,2616.1,2.3204]
[1723833760761,17.26102,2617.7,2616.5,3.82188]
[1723833761129,13.44088,2617.7,2616.6,3.82167]
[1723833761379,18.437112,2617.7,2616.5,3.82187]
[1723833761738,14.616972,2617.7,2616.6,3.82172]
[1723833761940,18.437112,2617.7,2616.5,3.82187]
[1723833762249,14.616972,2617.7,2616.5,3.8218]
[1723833762572,18.437112,2617.7,2616.6,3.82174]
[1723833762781,14.616972,2617.7,2616.5,3.8218]
[1723833763168,14.616972,2617.7,2616.6,3.82165]
[1723833763840,14.616972,2617.7,2616.7,3.82152]
[1723833764041,14.616972,2617.7,2616.6,3.82165]
[1723833764260,14.616972,2617.7,2616.6,7.6433]
[1723833764463,14.616972,2617.7,2616.6,3.82165]
[1723833764782,14.616972,2617.7,2616.8,3.82131]
[1723833765539,14.616972,2617.7,2616.5,3.82186]
[1723833765765,18.987112,2617.7,2616.5,7.64364]
[1723833766239,18.987112,2617.7,2616.5,7.64358]
[1723833766636,15.166972,2617.7,2616.5,3.82178]
[1723833766948,12.366372,2617.7,2616.9,2.3449]
[1723833768669,16.186512,2617.7,2616.9,2.3449]
[1723833768841,12.366372,2617.7,2616.9,2.3449]
[1723833770350,12.366372,2617.7,2616.9,6.1662]
[1723833770589,12.366372,2617.7,2616.9,6.16616]
[1723833770790,3.82014,2617.7,2617.1,3.82102]
[1723833770944,3.82014,2617.7,2617.6,0.16903075]
[1723833771286,6.88609292,2618.1,2617.6,0.16903075]
[1723833771287,3.8199,2617.9,2617.6,0.16903075]
[1723833771599,3.81977,2618.0,2617.6,0.1298189]
[1723833771600,3.81972,2618.0,2617.6,0.1298189]
[1723833772072,3.81972,2618.0,2617.7,0.03909866]
[1723833772257,3.81985,2617.9,2617.7,0.03909866]
[1723833773185,3.82,2617.8,2617.7,0.03909866]
[1723833774549,3.81984,2618.0,2617.7,0.03909866]
[1723833774942,3.81988,2617.9,2617.7,0.03909866]
[1723833775146,3.82,2617.8,2617.7,0.03909866]
[1723833775794,7.64,2617.8,2617.7,0.03909866]
[1723833776091,7.64028,2617.7,2617.6,0.1298189]
[1723833776412,8.40428,2617.7,2617.6,0.16900368]
[1723833777087,12.22442,2617.7,2617.6,0.16900368]
[1723833777298,8.40428,2617.7,2617.6,0.1298189]
[1723833777873,8.40428,2617.7,2617.6,0.16902459]
[1723833778785,8.40428,2617.7,2617.6,0.1298189]
[1723833778944,8.40428,2617.7,2617.6,0.16903198]
[1723833779148,3.82014,2617.7,2617.6,0.16903198]
[1723833779571,3.82013,2617.8,2617.6,0.16903198]
[1723833779774,3.81986,2617.9,2617.6,0.16903198]
[1723833779973,3.81978,2618.0,2617.6,0.16903198]
[1723833780348,7.63983,2617.9,2617.6,0.16903198]
[1723833780588,3.81989,2617.9,2617.6,0.16903198]
[1723833782395,7.64028,2617.7,2617.6,0.16903198]
[1723833782600,8.786297,2617.7,2617.6,0.16903198]
[1723833783257,12.606437,2617.7,2617.6,0.16903198]
[1723833783668,12.606437,2617.7,2617.6,0.1298189]
[1723833784505,8.786297,2617.7,2617.6,0.1298189]
[1723833785068,8.786297,2617.7,2617.6,0.16761905]
[1723833785594,8.786297,2617.7,2617.6,0.1298189]
[1723833785595,12.606437,2617.7,2617.6,0.1298189]
[1723833786688,15.606437,2617.7,2617.6,0.1298189]
[1723833787558,11.786297,2617.7,2617.6,0.1298189]
[1723833788271,15.606437,2617.7,2617.6,0.1298189]
[1723833789300,18.629837,2617.7,2617.6,0.1298189]
[1723833789691,22.449977,2617.7,2617.6,0.1298189]
[1723833790235,18.629837,2617.7,2617.6,0.1298189]
[1723833791505,16.156437,2617.7,2617.6,0.1298189]
[1723833791716,15.606437,2617.7,2617.6,0.1298189]
[1723833792077,15.67296238,2617.7,2617.6,0.1298189]
[1723833796320,16.22296238,2617.7,2617.6,0.1298189]
[1723833797271,15.67296238,2617.7,2617.6,0.1298189]
[1723833798084,10.70680538,2617.7,2617.6,0.1298189]
[1723833798815,10.64028,2617.7,2617.6,0.1298189]
[1723833800232,3.82001,2617.8,2617.6,0.1298189]
[1723833800426,3.88625376,2618.0,2617.7,2.4697]
[1723833800717,3.81993,2617.9,2617.7,2.77130359]
[1723833801553,3.82,2617.8,2617.7,2.77130359]
[1723833801709,3.82,2617.8,2617.7,2.50755612]
[1723833801911,3.82,2617.8,2617.7,0.03785612]
[1723833801912,7.64,2617.8,2617.7,0.03785612]
[1723833802113,7.64028,2617.7,2617.6,0.1298189]
[1723833802493,7.64028,2617.7,2617.6,0.16777467]
[1723833802899,3.82014,2617.7,2617.6,0.16777467]
[1723833803601,3.82,2617.8,2617.6,0.16777467]